[Event "*** Titled Tuesday Blitz"]
[Site "Chess.com"]
[Date "2020.10.27"]
[Round "11"]
[White "MatyChess1"]
[Black "nrvisakh"]
[Result "0-1"]
[WhiteElo "2567"]
[BlackElo "2711"]
[TimeControl "180+1"]
[EndTime "12:06:42 PDT"]
[Termination "nrvisakh won by checkmate"]

1. e4 {[%clk 0:03:00.9]} 1... c5 {[%clk 0:02:42]} 2. Nf3 {[%clk 0:03:00.5]} 2...
Nc6 {[%clk 0:02:42.1]} 3. d4 {[%clk 0:03:00.7]} 3... cxd4 {[%clk 0:02:43]} 4.
Nxd4 {[%clk 0:03:01.6]} 4... Nf6 {[%clk 0:02:43.5]} 5. Nc3 {[%clk 0:03:02.1]}
5... e5 {[%clk 0:02:43.9]} 6. Ndb5 {[%clk 0:03:02.7]} 6... d6 {[%clk 0:02:44.2]}
7. Bg5 {[%clk 0:03:03.2]} 7... a6 {[%clk 0:02:44.1]} 8. Na3 {[%clk 0:03:03.8]}
8... b5 {[%clk 0:02:44.6]} 9. Bxf6 {[%clk 0:03:04.7]} 9... gxf6 {[%clk
0:02:44.2]} 10. Nd5 {[%clk 0:03:05.6]} 10... f5 {[%clk 0:02:42.7]} 11. g3 {[%clk
0:03:06.2]} 11... Bg7 {[%clk 0:02:02]} 12. Bg2 {[%clk 0:03:05.4]} 12... fxe4
{[%clk 0:01:41.6]} 13. Bxe4 {[%clk 0:03:05]} 13... O-O {[%clk 0:01:35.9]} 14. c3
{[%clk 0:02:53]} 14... f5 {[%clk 0:01:28.3]} 15. Bg2 {[%clk 0:02:49.7]} 15... e4
{[%clk 0:01:28.1]} 16. Nc2 {[%clk 0:02:47.7]} 16... Ne5 {[%clk 0:01:27.5]} 17.
O-O {[%clk 0:02:41.4]} 17... Bb7 {[%clk 0:01:26.9]} 18. Nf4 {[%clk 0:02:35.9]}
18... Qf6 {[%clk 0:01:22.1]} 19. Ne3 {[%clk 0:02:31.2]} 19... Bh6 {[%clk
0:01:20]} 20. Ned5 {[%clk 0:02:23]} 20... Qf7 {[%clk 0:01:14]} 21. a4 {[%clk
0:02:14.3]} 21... Kh8 {[%clk 0:00:53.7]} 22. Qd4 {[%clk 0:01:54.4]} 22... Bg7
{[%clk 0:00:51.4]} 23. Qd1 {[%clk 0:01:39.5]} 23... bxa4 {[%clk 0:00:50.8]} 24.
Rxa4 {[%clk 0:01:35]} 24... Bc6 {[%clk 0:00:50.9]} 25. Rb4 {[%clk 0:01:07.5]}
25... Bb5 {[%clk 0:00:43.6]} 26. Re1 {[%clk 0:01:02.9]} 26... Nc6 {[%clk
0:00:43.6]} 27. Rxb5 {[%clk 0:00:33.7]} 27... axb5 {[%clk 0:00:43.4]} 28. Ne3
{[%clk 0:00:33.8]} 28... Rfd8 {[%clk 0:00:26.7]} 29. Qe2 {[%clk 0:00:32.6]}
29... Ne7 {[%clk 0:00:16.2]} 30. Qxb5 {[%clk 0:00:30.4]} 30... d5 {[%clk
0:00:16.4]} 31. Rd1 {[%clk 0:00:29.9]} 31... d4 {[%clk 0:00:15.8]} 32. cxd4
{[%clk 0:00:30.4]} 32... Rxd4 {[%clk 0:00:14.8]} 33. Rc1 {[%clk 0:00:18]} 33...
Rad8 {[%clk 0:00:14]} 34. h4 {[%clk 0:00:17.4]} 34... R4d7 {[%clk 0:00:10.2]}
35. Qb6 {[%clk 0:00:14.9]} 35... Bd4 {[%clk 0:00:09.2]} 36. Qa5 {[%clk
0:00:10.4]} 36... Ng6 {[%clk 0:00:08.7]} 37. Nxg6+ {[%clk 0:00:02.4]} 37... hxg6
{[%clk 0:00:09.6]} 38. Nc2 {[%clk 0:00:02.6]} 38... Bg7 {[%clk 0:00:08.5]} 39.
h5 {[%clk 0:00:03]} 39... gxh5 {[%clk 0:00:08.1]} 40. Qb5 {[%clk 0:00:02.9]}
40... Rd5 {[%clk 0:00:07.7]} 41. Qe2 {[%clk 0:00:03.3]} 41... Rd2 {[%clk
0:00:07.5]} 42. Qe1 {[%clk 0:00:03.5]} 42... Bxb2 {[%clk 0:00:06.4]} 43. Rb1
{[%clk 0:00:01.8]} 43... Rxc2 {[%clk 0:00:06.7]} 44. Qe3 {[%clk 0:00:02.7]}
44... Bg7 {[%clk 0:00:05.6]} 45. Qf4 {[%clk 0:00:01.8]} 45... Rcd2 {[%clk
0:00:05.5]} 46. Bf1 {[%clk 0:00:02.3]} 46... Rd1 {[%clk 0:00:05.5]} 47. Rb6
{[%clk 0:00:02.8]} 47... Kg8 {[%clk 0:00:03.3]} 48. Kg2 {[%clk 0:00:03.7]} 48...
Qd5 {[%clk 0:00:03]} 49. Rg6 {[%clk 0:00:02.9]} 49... e3+ {[%clk 0:00:03.2]} 50.
Kh3 {[%clk 0:00:03.3]} 50... Rxf1 {[%clk 0:00:03.5]} 51. Qg5 {[%clk 0:00:03.5]}
51... Qh1# {[%clk 0:00:03]} 0-1

[Event "*** Titled Tuesday Blitz"]
[Site "Chess.com"]
[Date "2020.10.27"]
[Round "11"]
[White "MarkEvgenievich"]
[Black "AlexeiShirov"]
[Result "1/2-1/2"]
[WhiteElo "2346"]
[BlackElo "2783"]
[TimeControl "180+1"]
[EndTime "12:06:44 PDT"]
[Termination "Game drawn by agreement"]

1. d4 {[%clk 0:03:00.9]} 1... d5 {[%clk 0:02:59.6]} 2. c4 {[%clk 0:03:00.6]}
2... c6 {[%clk 0:02:59.4]} 3. cxd5 {[%clk 0:03:00.2]} 3... cxd5 {[%clk
0:02:58.6]} 4. Bf4 {[%clk 0:03:00.5]} 4... Nc6 {[%clk 0:02:57]} 5. Nc3 {[%clk
0:02:58.8]} 5... Nf6 {[%clk 0:02:55.2]} 6. e3 {[%clk 0:02:58.4]} 6... a6 {[%clk
0:02:54.3]} 7. Bd3 {[%clk 0:02:57.3]} 7... Bg4 {[%clk 0:02:53.3]} 8. Nge2 {[%clk
0:02:57.2]} 8... e6 {[%clk 0:02:51.7]} 9. O-O {[%clk 0:02:56.6]} 9... Be7 {[%clk
0:02:47.7]} 10. Rc1 {[%clk 0:02:55.3]} 10... O-O {[%clk 0:02:46.2]} 11. a3
{[%clk 0:02:49.2]} 11... Rc8 {[%clk 0:02:27.8]} 12. Na4 {[%clk 0:02:40.7]} 12...
Nd7 {[%clk 0:02:26.1]} 13. f3 {[%clk 0:02:38.4]} 13... Bh5 {[%clk 0:02:25]} 14.
Qd2 {[%clk 0:02:30.6]} 14... b5 {[%clk 0:02:12]} 15. Nc5 {[%clk 0:02:18.1]}
15... Nxc5 {[%clk 0:02:10.8]} 16. dxc5 {[%clk 0:02:19]} 16... e5 {[%clk
0:02:10.7]} 17. Bg3 {[%clk 0:02:14.5]} 17... e4 {[%clk 0:01:57.6]} 18. Bb1
{[%clk 0:02:06.2]} 18... exf3 {[%clk 0:01:55]} 19. gxf3 {[%clk 0:02:04.9]} 19...
Bg5 {[%clk 0:01:35.8]} 20. Nf4 {[%clk 0:01:58.4]} 20... d4 {[%clk 0:01:28.3]}
21. exd4 {[%clk 0:01:40]} 21... Nxd4 {[%clk 0:01:26.6]} 22. Qd3 {[%clk
0:01:38.8]} 22... Bg6 {[%clk 0:01:18.6]} 23. Nxg6 {[%clk 0:01:38.6]} 23... fxg6
{[%clk 0:01:16.3]} 24. Rcd1 {[%clk 0:01:36.6]} 24... Rxc5 {[%clk 0:01:08.2]} 25.
Qxd4 {[%clk 0:01:21.2]} 25... Qxd4+ {[%clk 0:01:06.5]} 26. Rxd4 {[%clk
0:01:21.6]} 26... Be3+ {[%clk 0:01:06.1]} 27. Bf2 {[%clk 0:01:21.9]} 27... Rg5+
{[%clk 0:01:05.3]} 28. Rg4 {[%clk 0:01:18.5]} 28... Bxf2+ {[%clk 0:01:03.4]} 29.
Rxf2 {[%clk 0:01:16.9]} 29... Rc5 {[%clk 0:01:03.9]} 30. Ba2+ {[%clk 0:01:15.6]}
30... Kh8 {[%clk 0:01:03]} 31. Re4 {[%clk 0:01:11.5]} 31... h5 {[%clk
0:00:58.9]} 32. Kg2 {[%clk 0:01:08.4]} 32... Rf6 {[%clk 0:00:57.2]} 33. Re6
{[%clk 0:01:06.8]} 33... Rg5+ {[%clk 0:00:55.4]} 34. Kf1 {[%clk 0:01:05.9]}
34... Rxe6 {[%clk 0:00:48.8]} 35. Bxe6 {[%clk 0:01:04.7]} 35... Kh7 {[%clk
0:00:48.8]} 36. f4 {[%clk 0:01:01.5]} 36... Rc5 {[%clk 0:00:48.2]} 37. f5 {[%clk
0:01:00.1]} 37... gxf5 {[%clk 0:00:47.5]} 38. Rxf5 {[%clk 0:00:58.2]} 38... Rc1+
{[%clk 0:00:46.9]} 39. Kg2 {[%clk 0:00:57.4]} 39... g6 {[%clk 0:00:45.9]} 40.
Rf7+ {[%clk 0:00:53.1]} 40... Kh6 {[%clk 0:00:45.7]} 41. Rf2 {[%clk 0:00:52.6]}
41... Kg5 {[%clk 0:00:43.1]} 42. Rd2 {[%clk 0:00:50.6]} 42... Kf4 {[%clk
0:00:41.8]} 43. Bf7 {[%clk 0:00:49.5]} 43... Kf5 {[%clk 0:00:39.9]} 44. Rf2+
{[%clk 0:00:39.4]} 44... Kg5 {[%clk 0:00:39]} 45. Kg3 {[%clk 0:00:36.1]} 45...
Rg1+ {[%clk 0:00:31.5]} 46. Rg2 {[%clk 0:00:36.1]} 46... Rf1 {[%clk 0:00:31.1]}
47. Kh3+ {[%clk 0:00:34.8]} 47... Kh6 {[%clk 0:00:25.7]} 48. Rxg6+ {[%clk
0:00:26]} 48... Kh7 {[%clk 0:00:24.6]} 49. Be8 {[%clk 0:00:25.6]} 49... Re1
{[%clk 0:00:24.2]} 50. Bf7 {[%clk 0:00:25]} 50... Rf1 {[%clk 0:00:24.1]} 51.
Rxa6 {[%clk 0:00:18.8]} 51... Rxf7 {[%clk 0:00:23.7]} 52. Rb6 {[%clk 0:00:17]}
52... Rf3+ {[%clk 0:00:23.3]} 53. Kh4 {[%clk 0:00:14.8]} 53... Rb3 {[%clk
0:00:23]} 54. Kxh5 {[%clk 0:00:14.5]} 54... Rxb2 {[%clk 0:00:22.2]} 55. h4
{[%clk 0:00:14.2]} 55... Rb3 {[%clk 0:00:21.6]} 56. Rb7+ {[%clk 0:00:14.2]}
56... Kg8 {[%clk 0:00:21.7]} 57. Kh6 {[%clk 0:00:08.2]} 57... Rxa3 {[%clk
0:00:21.1]} 58. Rxb5 {[%clk 0:00:05.4]} 58... Ra6+ {[%clk 0:00:20.9]} 59. Kh5
{[%clk 0:00:05.4]} 59... Kg7 {[%clk 0:00:20.3]} 60. Rg5+ {[%clk 0:00:05.1]}
60... Kh7 {[%clk 0:00:20.3]} 61. Rb5 {[%clk 0:00:05.4]} 61... Kg7 {[%clk
0:00:20.4]} 62. Kg5 {[%clk 0:00:03.9]} 1/2-1/2

[Event "*** Titled Tuesday Blitz"]
[Site "Chess.com"]
[Date "2020.10.27"]
[Round "11"]
[White "akanga001"]
[Black "Mbneu"]
[Result "0-1"]
[WhiteElo "1921"]
[BlackElo "2198"]
[TimeControl "180+1"]
[EndTime "12:06:45 PDT"]
[Termination "Mbneu won by checkmate"]

1. d4 {[%clk 0:03:00.9]} 1... Nf6 {[%clk 0:02:58.5]} 2. c4 {[%clk 0:03:00.6]}
2... c5 {[%clk 0:02:59]} 3. d5 {[%clk 0:02:59.8]} 3... e6 {[%clk 0:02:59.4]} 4.
Nc3 {[%clk 0:02:59.8]} 4... exd5 {[%clk 0:02:59.9]} 5. cxd5 {[%clk 0:03:00.2]}
5... d6 {[%clk 0:03:00.3]} 6. e4 {[%clk 0:03:00.3]} 6... g6 {[%clk 0:03:00.8]}
7. f4 {[%clk 0:03:00.2]} 7... Bg7 {[%clk 0:03:00.6]} 8. Nf3 {[%clk 0:02:59.2]}
8... O-O {[%clk 0:02:59.7]} 9. Be2 {[%clk 0:02:56.4]} 9... Nbd7 {[%clk
0:02:57.7]} 10. O-O {[%clk 0:02:55.6]} 10... Re8 {[%clk 0:02:55.5]} 11. Nd2
{[%clk 0:02:55.4]} 11... c4 {[%clk 0:02:44.2]} 12. Bxc4 {[%clk 0:02:52.9]} 12...
Nc5 {[%clk 0:02:43.2]} 13. Qc2 {[%clk 0:02:52]} 13... a6 {[%clk 0:02:00.5]} 14.
a4 {[%clk 0:02:49]} 14... Qb6 {[%clk 0:01:54.1]} 15. Kh1 {[%clk 0:02:48.7]}
15... Bd7 {[%clk 0:01:41.6]} 16. a5 {[%clk 0:02:47.5]} 16... Qa7 {[%clk
0:01:40.8]} 17. b4 {[%clk 0:02:30.4]} 17... Ncxe4 {[%clk 0:01:38.3]} 18. Ndxe4
{[%clk 0:02:19.5]} 18... Nxe4 {[%clk 0:01:37.6]} 19. Bb2 {[%clk 0:02:13.1]}
19... Bf5 {[%clk 0:01:29.9]} 20. Bd3 {[%clk 0:02:12.2]} 20... Rac8 {[%clk
0:01:25.8]} 21. Bxe4 {[%clk 0:02:02.7]} 21... Bxe4 {[%clk 0:01:19.5]} 22. Qd2
{[%clk 0:02:03.1]} 22... Bf5 {[%clk 0:01:11.9]} 23. Na4 {[%clk 0:01:55.3]} 23...
Qe3 {[%clk 0:01:07.6]} 24. Qxe3 {[%clk 0:01:40.2]} 24... Rxe3 {[%clk 0:01:08.5]}
25. Bxg7 {[%clk 0:01:37.9]} 25... Kxg7 {[%clk 0:01:08.2]} 26. Nb6 {[%clk
0:01:37.9]} 26... Rc2 {[%clk 0:01:07]} 27. Rae1 {[%clk 0:01:37.7]} 27... Rb3
{[%clk 0:00:56.6]} 28. Rc1 {[%clk 0:01:22.1]} 28... Rxc1 {[%clk 0:00:51.6]} 29.
Rxc1 {[%clk 0:01:20.4]} 29... Rxb4 {[%clk 0:00:52]} 30. h3 {[%clk 0:01:19.6]}
30... Rxf4 {[%clk 0:00:50.4]} 31. Rc7 {[%clk 0:01:18.4]} 31... Rf2 {[%clk
0:00:42.9]} 32. Kg1 {[%clk 0:01:16.3]} 32... Ra2 {[%clk 0:00:41.3]} 33. Rxb7
{[%clk 0:01:09.2]} 33... Be4 {[%clk 0:00:39.9]} 34. h4 {[%clk 0:01:07.7]} 34...
Rxg2+ {[%clk 0:00:38.9]} 35. Kf1 {[%clk 0:01:08]} 35... Ra2 {[%clk 0:00:38.5]}
36. Nc8 {[%clk 0:01:06.2]} 36... Bxd5 {[%clk 0:00:36.6]} 37. Rb6 {[%clk
0:01:03]} 37... Rxa5 {[%clk 0:00:36.2]} 38. Nxd6 {[%clk 0:01:01.4]} 38... Be6
{[%clk 0:00:35]} 39. Rb4 {[%clk 0:00:58.7]} 39... Rd5 {[%clk 0:00:32.9]} 40. Ne4
{[%clk 0:00:52.3]} 40... a5 {[%clk 0:00:31.4]} 41. Ra4 {[%clk 0:00:46]} 41...
Bd7 {[%clk 0:00:31.5]} 42. Ra3 {[%clk 0:00:42.4]} 42... a4 {[%clk 0:00:31.4]}
43. Kf2 {[%clk 0:00:39.1]} 43... Rb5 {[%clk 0:00:26.7]} 44. Nc3 {[%clk
0:00:34.5]} 44... Rb3 {[%clk 0:00:26.2]} 45. Rxb3 {[%clk 0:00:32.3]} 45... axb3
{[%clk 0:00:25.2]} 46. Nd1 {[%clk 0:00:32.2]} 46... Bf5 {[%clk 0:00:24.7]} 47.
Nb2 {[%clk 0:00:32.7]} 47... Bc2 {[%clk 0:00:24.2]} 48. Ke3 {[%clk 0:00:33.6]}
48... h6 {[%clk 0:00:23]} 49. Kf4 {[%clk 0:00:34.5]} 49... f6 {[%clk 0:00:23.2]}
50. Nc4 {[%clk 0:00:34.8]} 50... g5+ {[%clk 0:00:23.2]} 51. hxg5 {[%clk
0:00:34.8]} 51... hxg5+ {[%clk 0:00:23.7]} 52. Kg4 {[%clk 0:00:34.4]} 52... Kg6
{[%clk 0:00:24.1]} 53. Kg3 {[%clk 0:00:33.9]} 53... f5 {[%clk 0:00:24.3]} 54.
Ne5+ {[%clk 0:00:33.8]} 54... Kh5 {[%clk 0:00:24.4]} 55. Nc4 {[%clk 0:00:32.4]}
55... f4+ {[%clk 0:00:24.5]} 56. Kg2 {[%clk 0:00:31.5]} 56... g4 {[%clk
0:00:23.6]} 57. Kg1 {[%clk 0:00:28.6]} 57... g3 {[%clk 0:00:20.4]} 58. Kg2
{[%clk 0:00:28]} 58... Be4+ {[%clk 0:00:19.9]} 59. Kg1 {[%clk 0:00:27.4]} 59...
f3 {[%clk 0:00:20.3]} 60. Nb2 {[%clk 0:00:20.3]} 60... f2+ {[%clk 0:00:19.8]}
61. Kf1 {[%clk 0:00:19.6]} 61... Kg4 {[%clk 0:00:18.1]} 62. Nd1 {[%clk
0:00:17.9]} 62... Bd3+ {[%clk 0:00:16.7]} 63. Kg2 {[%clk 0:00:16.1]} 63... f1=Q#
{[%clk 0:00:17.6]} 0-1

[Event "*** Titled Tuesday Blitz"]
[Site "Chess.com"]
[Date "2020.10.27"]
[Round "11"]
[White "GigaQuparadze"]
[Black "Beca95"]
[Result "1-0"]
[WhiteElo "2860"]
[BlackElo "2914"]
[TimeControl "180+1"]
[EndTime "12:06:53 PDT"]
[Termination "GigaQuparadze won by resignation"]

1. e4 {[%clk 0:03:00.9]} 1... g6 {[%clk 0:03:00.4]} 2. d4 {[%clk 0:03:00.6]}
2... Bg7 {[%clk 0:03:00.8]} 3. Nc3 {[%clk 0:03:01.5]} 3... d6 {[%clk 0:03:01.2]}
4. Bg5 {[%clk 0:03:00.2]} 4... a6 {[%clk 0:02:59.5]} 5. Qd2 {[%clk 0:02:59.4]}
5... b5 {[%clk 0:02:59.5]} 6. a4 {[%clk 0:02:57.4]} 6... b4 {[%clk 0:02:59.5]}
7. Nd5 {[%clk 0:02:55.7]} 7... a5 {[%clk 0:02:59.9]} 8. c3 {[%clk 0:02:54.4]}
8... c6 {[%clk 0:02:59.4]} 9. Ne3 {[%clk 0:02:54]} 9... h6 {[%clk 0:02:56.9]}
10. Bh4 {[%clk 0:02:53.5]} 10... Nd7 {[%clk 0:02:57.1]} 11. Bc4 {[%clk
0:02:51.9]} 11... Ngf6 {[%clk 0:02:55.6]} 12. f3 {[%clk 0:02:51.8]} 12... O-O
{[%clk 0:02:53.1]} 13. Ne2 {[%clk 0:02:51.5]} 13... bxc3 {[%clk 0:02:50.5]} 14.
bxc3 {[%clk 0:02:51.3]} 14... Qc7 {[%clk 0:02:38.9]} 15. Ba2 {[%clk 0:02:43.6]}
15... Ba6 {[%clk 0:02:36.6]} 16. O-O {[%clk 0:02:41.4]} 16... e6 {[%clk
0:02:34.5]} 17. Rfb1 {[%clk 0:02:39]} 17... Nh5 {[%clk 0:02:30.4]} 18. Ng4
{[%clk 0:02:32.9]} 18... Kh7 {[%clk 0:02:15.4]} 19. Ne3 {[%clk 0:02:19.1]} 19...
c5 {[%clk 0:02:06.1]} 20. Rc1 {[%clk 0:01:52.2]} 20... Bxe2 {[%clk 0:01:57.3]}
21. Qxe2 {[%clk 0:01:52.1]} 21... cxd4 {[%clk 0:01:54.4]} 22. cxd4 {[%clk
0:01:53]} 22... Qa7 {[%clk 0:01:54.1]} 23. Nc2 {[%clk 0:01:50.6]} 23... e5
{[%clk 0:01:53.1]} 24. Bf2 {[%clk 0:01:46.5]} 24... Nf4 {[%clk 0:01:42.4]} 25.
Qd2 {[%clk 0:01:46.1]} 25... Qa6 {[%clk 0:01:42.6]} 26. Rd1 {[%clk 0:01:39.3]}
26... Nf6 {[%clk 0:01:41.7]} 27. Rab1 {[%clk 0:01:27.7]} 27... Rac8 {[%clk
0:01:39.2]} 28. dxe5 {[%clk 0:01:27.3]} 28... dxe5 {[%clk 0:01:36.3]} 29. Rb6
{[%clk 0:01:26.6]} 29... Qe2 {[%clk 0:01:35.2]} 30. Ne3 {[%clk 0:01:18.8]} 30...
h5 {[%clk 0:01:07.3]} 31. Rb2 {[%clk 0:01:05.2]} 31... Qa6 {[%clk 0:01:05.6]}
32. Nd5 {[%clk 0:01:04.4]} 32... N6xd5 {[%clk 0:01:04.3]} 33. exd5 {[%clk
0:01:04.1]} 33... Rfd8 {[%clk 0:00:47.6]} 34. Be3 {[%clk 0:00:57.3]} 34... h4
{[%clk 0:00:43.1]} 35. Rb6 {[%clk 0:00:57.1]} 35... Qa8 {[%clk 0:00:41.6]} 36.
d6 {[%clk 0:00:54.3]} 36... h3 {[%clk 0:00:36.7]} 37. d7 {[%clk 0:00:47.3]}
37... Rc7 {[%clk 0:00:35.4]} 38. Rd6 {[%clk 0:00:46.7]} 38... Nxg2 {[%clk
0:00:32.2]} 39. Bb6 {[%clk 0:00:42.8]} 39... Nh4 {[%clk 0:00:30.6]} 40. Bd5
{[%clk 0:00:41.8]} 40... Nxf3+ {[%clk 0:00:30.1]} 41. Kf2 {[%clk 0:00:42.1]}
41... Nxd2 {[%clk 0:00:21]} 42. Bxa8 {[%clk 0:00:41.1]} 42... Rcxd7 {[%clk
0:00:21.5]} 43. Rxd7 {[%clk 0:00:39.4]} 43... Rxd7 {[%clk 0:00:22.4]} 44. Ke2
{[%clk 0:00:39.9]} 44... Bh6 {[%clk 0:00:20.2]} 45. Bh1 {[%clk 0:00:26.3]} 45...
Rd6 {[%clk 0:00:16.4]} 46. Bxa5 {[%clk 0:00:25.9]} 46... Nc4 {[%clk 0:00:15.7]}
47. Rxd6 {[%clk 0:00:26.1]} 47... Nxd6 {[%clk 0:00:16.6]} 48. Bc7 {[%clk
0:00:26.5]} 48... Nf5 {[%clk 0:00:14.9]} 49. Bxe5 {[%clk 0:00:25.5]} 49... Bg7
{[%clk 0:00:14.7]} 50. Bf4 {[%clk 0:00:24.6]} 50... Nd4+ {[%clk 0:00:13]} 51.
Kd3 {[%clk 0:00:24.4]} 51... Ne6 {[%clk 0:00:12]} 52. Bd6 {[%clk 0:00:22.2]}
52... Bh6 {[%clk 0:00:09.9]} 53. a5 {[%clk 0:00:21.9]} 53... Bf4 {[%clk
0:00:06.3]} 54. Bxf4 {[%clk 0:00:21.4]} 54... Nxf4+ {[%clk 0:00:07.2]} 55. Kd4
{[%clk 0:00:21.7]} 55... Ne6+ {[%clk 0:00:04.7]} 56. Kd5 {[%clk 0:00:20.6]}
56... Kg7 {[%clk 0:00:05.1]} 57. Kd6 {[%clk 0:00:20.4]} 57... Nd4 {[%clk
0:00:05.4]} 58. Bc6 {[%clk 0:00:19.9]} 58... g5 {[%clk 0:00:04.9]} 59. a6 {[%clk
0:00:20.1]} 59... g4 {[%clk 0:00:05.5]} 60. a7 {[%clk 0:00:20.5]} 60... g3
{[%clk 0:00:06.3]} 61. a8=Q {[%clk 0:00:20.3]} 61... g2 {[%clk 0:00:06.4]} 62.
Bxg2 {[%clk 0:00:19.9]} 62... Nf5+ {[%clk 0:00:06]} 63. Ke5 {[%clk 0:00:19.9]}
1-0

[Event "*** Titled Tuesday Blitz"]
[Site "Chess.com"]
[Date "2020.10.27"]
[Round "11"]
[White "SergeyKarjakin"]
[Black "crescentmoon2411"]
[Result "1-0"]
[WhiteElo "3023"]
[BlackElo "2886"]
[TimeControl "180+1"]
[EndTime "12:07:01 PDT"]
[Termination "SergeyKarjakin won by checkmate"]

1. e4 {[%clk 0:02:58.1]} 1... e5 {[%clk 0:02:56.7]} 2. Nf3 {[%clk 0:02:57.6]}
2... Nc6 {[%clk 0:02:56]} 3. Bc4 {[%clk 0:02:58.2]} 3... Bc5 {[%clk 0:02:53.6]}
4. c3 {[%clk 0:02:58.6]} 4... Nf6 {[%clk 0:02:50.4]} 5. d3 {[%clk 0:02:59.5]}
5... d6 {[%clk 0:02:47.6]} 6. O-O {[%clk 0:02:59.2]} 6... h6 {[%clk 0:02:40.6]}
7. Nbd2 {[%clk 0:02:56.5]} 7... a6 {[%clk 0:02:29.1]} 8. a4 {[%clk 0:02:56.2]}
8... O-O {[%clk 0:02:25.2]} 9. Re1 {[%clk 0:02:56.2]} 9... Re8 {[%clk
0:02:15.7]} 10. Nf1 {[%clk 0:02:53.9]} 10... Ba7 {[%clk 0:01:59]} 11. Ng3 {[%clk
0:02:51.9]} 11... Be6 {[%clk 0:01:46.1]} 12. h3 {[%clk 0:02:52.1]} 12... Bxc4
{[%clk 0:01:38]} 13. dxc4 {[%clk 0:02:53]} 13... Ne7 {[%clk 0:01:36.9]} 14. Nh4
{[%clk 0:02:52.1]} 14... Qd7 {[%clk 0:01:32.3]} 15. a5 {[%clk 0:02:41.9]} 15...
Rad8 {[%clk 0:01:21.7]} 16. Qf3 {[%clk 0:02:40]} 16... Qe6 {[%clk 0:01:09.9]}
17. Nhf5 {[%clk 0:02:29.4]} 17... Ng6 {[%clk 0:00:42]} 18. Be3 {[%clk
0:02:12.3]} 18... Bxe3 {[%clk 0:00:41.2]} 19. Nxe3 {[%clk 0:02:13.2]} 19... Nf4
{[%clk 0:00:39.9]} 20. Rad1 {[%clk 0:02:06.2]} 20... g6 {[%clk 0:00:36.7]} 21.
h4 {[%clk 0:02:02.7]} 21... h5 {[%clk 0:00:36.1]} 22. Ngf1 {[%clk 0:01:52.7]}
22... Ng4 {[%clk 0:00:32.1]} 23. Rd2 {[%clk 0:01:43.9]} 23... Rb8 {[%clk
0:00:25.1]} 24. Kh1 {[%clk 0:01:28.9]} 24... Nxe3 {[%clk 0:00:20.3]} 25. fxe3
{[%clk 0:01:26.6]} 25... Qf6 {[%clk 0:00:19]} 26. Qf2 {[%clk 0:01:21.9]} 26...
b6 {[%clk 0:00:14.4]} 27. axb6 {[%clk 0:01:20.3]} 27... Rxb6 {[%clk 0:00:15.3]}
28. exf4 {[%clk 0:01:19.8]} 28... exf4 {[%clk 0:00:15.6]} 29. Nh2 {[%clk
0:01:16.2]} 29... Reb8 {[%clk 0:00:10.5]} 30. Nf3 {[%clk 0:01:15]} 30... a5
{[%clk 0:00:09.8]} 31. Kh2 {[%clk 0:01:07.3]} 31... a4 {[%clk 0:00:09.6]} 32. e5
{[%clk 0:01:02.5]} 32... dxe5 {[%clk 0:00:08]} 33. Rxe5 {[%clk 0:01:03.4]} 33...
Kg7 {[%clk 0:00:07.1]} 34. c5 {[%clk 0:00:58.6]} 34... Rb3 {[%clk 0:00:05]} 35.
Qe2 {[%clk 0:00:55.4]} 35... a3 {[%clk 0:00:05.1]} 36. bxa3 {[%clk 0:00:55.3]}
36... Rxc3 {[%clk 0:00:05.3]} 37. Rd3 {[%clk 0:00:47.8]} 37... Rbb3 {[%clk
0:00:04]} 38. Rxc3 {[%clk 0:00:41.5]} 38... Rxc3 {[%clk 0:00:04.9]} 39. a4
{[%clk 0:00:22.8]} 39... Ra3 {[%clk 0:00:04.8]} 40. Qe4 {[%clk 0:00:18.1]} 40...
Re3 {[%clk 0:00:03.6]} 41. Qd4 {[%clk 0:00:14.4]} 41... Rxf3 {[%clk 0:00:02.7]}
42. gxf3 {[%clk 0:00:14.7]} 42... Qxh4+ {[%clk 0:00:03.4]} 43. Kg2 {[%clk
0:00:14.9]} 43... Qg3+ {[%clk 0:00:04]} 44. Kf1 {[%clk 0:00:15.6]} 44... Qxf3+
{[%clk 0:00:04.6]} 45. Ke1 {[%clk 0:00:16]} 45... Kh6 {[%clk 0:00:04.4]} 46. Re4
{[%clk 0:00:13.5]} 46... Kg5 {[%clk 0:00:04.1]} 47. Rxf4 {[%clk 0:00:09.5]}
47... Qh1+ {[%clk 0:00:03.2]} 48. Kd2 {[%clk 0:00:09.5]} 48... Qb1 {[%clk
0:00:02]} 49. Qf6+ {[%clk 0:00:08.9]} 49... Kh6 {[%clk 0:00:02.3]} 50. Qh8+
{[%clk 0:00:08.4]} 50... Kg5 {[%clk 0:00:01.8]} 51. Qf6+ {[%clk 0:00:09.3]}
51... Kh6 {[%clk 0:00:02.5]} 52. Qd4 {[%clk 0:00:09.4]} 52... Qa2+ {[%clk
0:00:02.2]} 53. Kc3 {[%clk 0:00:09.5]} 53... Qa3+ {[%clk 0:00:02.2]} 54. Kc2
{[%clk 0:00:09.6]} 54... Qa2+ {[%clk 0:00:02.5]} 55. Kd3 {[%clk 0:00:09.8]}
55... f5 {[%clk 0:00:02.8]} 56. Rf2 {[%clk 0:00:07.8]} 56... Qb3+ {[%clk
0:00:02.7]} 57. Ke2 {[%clk 0:00:08]} 57... Kg5 {[%clk 0:00:02.3]} 58. Rg2+
{[%clk 0:00:07.2]} 58... Kh6 {[%clk 0:00:02.6]} 59. Qh8# {[%clk 0:00:07.7]} 1-0